bitfinex/quotes_SOLUSD_20230105
["timestamp","ask_amount","ask_price","bid_price","bid_amount"]
[1672936448008,20.0,13.175,13.164,17.0]
[1672936448216,20.0,13.175,13.166,20.0]
[1672936448424,20.0,13.175,13.167,17.0]
[1672936448943,20.0,13.177,13.166,17.0]
[1672936453290,40.0,13.177,13.166,17.0]
[1672936453613,40.0,13.177,13.165,17.0]
[1672936454629,98.04819749,13.18,13.165,17.0]
[1672936454630,56.95,13.179,13.165,20.0]
[1672936454864,56.95,13.179,13.166,74.01]
[1672936455065,79.36737149,13.179,13.162,109.9233816]
[1672936455273,20.0,13.177,13.162,109.9233816]
[1672936455469,6.58,13.17,13.162,109.9233816]
[1672936457069,112.41737149,13.17,13.162,109.9233816]
[1672936457474,20.0,13.169,13.162,109.9233816]
[1672936457683,20.0,13.167,13.162,109.9233816]
[1672936457910,20.0,13.167,13.162,8.16e-05]
[1672936459468,99.40737149,13.169,13.162,8.16e-05]
[1672936459696,6.62,13.17,13.162,8.16e-05]
[1672936466533,20.0,13.169,13.162,8.16e-05]
[1672936469158,42.41737149,13.169,13.162,8.16e-05]
[1672936469476,57.0,13.168,13.162,8.16e-05]
[1672936469673,20.0,13.167,13.162,8.16e-05]
[1672936470509,68.13988317,13.166,13.162,8.16e-05]
[1672936470842,20.0,13.164,13.162,8.16e-05]
[1672936471240,42.41737149,13.164,13.162,8.16e-05]
[1672936472648,20.0,13.164,13.162,8.16e-05]
[1672936475162,105.14988317,13.165,13.162,8.16e-05]
[1672936475375,40.0,13.164,13.162,8.16e-05]
[1672936481587,20.0,13.164,13.162,8.16e-05]
[1672936483678,99.43737149,13.164,13.162,8.16e-05]
[1672936484002,20.0,13.163,13.162,8.16e-05]
[1672936484629,42.41737149,13.163,13.162,8.16e-05]
[1672936489047,22.41737149,13.163,13.162,8.16e-05]
[1672936489274,20.0,13.164,13.162,8.16e-05]
[1672936490098,22.41737149,13.166,13.162,8.16e-05]
[1672936490318,105.12988317,13.169,13.162,8.16e-05]
[1672936490505,72.29015925,13.17,13.162,8.16e-05]
[1672936490716,129.28015925,13.17,13.162,8.16e-05]
[1672936491130,20.0,13.169,13.162,8.16e-05]
[1672936493773,79.41737149,13.168,13.162,8.16e-05]
[1672936493990,20.0,13.166,13.162,8.16e-05]
[1672936494176,77.01,13.165,13.162,8.16e-05]
[1672936494387,20.0,13.164,13.162,8.16e-05]
[1672936494620,57.02,13.163,13.162,8.16e-05]
[1672936495058,79.43737149,13.163,13.162,8.16e-05]
[1672936495451,22.41737149,13.163,13.162,8.16e-05]
[1672936495893,204.88608058,13.163,13.162,8.16e-05]
[1672936496095,246.67961499,13.163,13.162,8.16e-05]
[1672936496417,263.67961499,13.163,13.162,8.16e-05]
[1672936497050,246.67961499,13.163,13.162,8.16e-05]
[1672936497456,263.67961499,13.163,13.162,8.16e-05]
[1672936498929,246.67961499,13.163,13.162,8.16e-05]
[1672936499363,189.65961499,13.163,13.162,8.16e-05]
[1672936499563,187.88608058,13.163,13.162,8.16e-05]
[1672936500519,204.88608058,13.163,13.162,8.16e-05]
[1672936500730,187.88608058,13.163,13.162,8.16e-05]
[1672936502296,204.88608058,13.163,13.162,8.16e-05]
[1672936502704,267.10934609,13.163,13.162,8.16e-05]
[1672936503671,250.10934609,13.163,13.162,8.16e-05]
[1672936505239,267.10934609,13.163,13.162,8.16e-05]
[1672936506325,250.10934609,13.163,13.162,8.16e-05]
[1672936506843,193.08934609,13.163,13.162,8.16e-05]
[1672936507882,267.10934609,13.163,13.162,8.16e-05]
[1672936508083,250.10934609,13.163,13.162,8.16e-05]
[1672936508293,193.08934609,13.163,13.162,8.16e-05]
[1672936509454,270.10934609,13.163,13.162,8.16e-05]
[1672936509894,287.10934609,13.163,13.162,8.16e-05]
[1672936510077,270.10934609,13.163,13.162,8.16e-05]
[1672936510624,213.08934609,13.163,13.162,8.16e-05]
[1672936511448,230.08934609,13.163,13.162,8.16e-05]
[1672936512499,287.10934609,13.163,13.162,8.16e-05]
[1672936513234,270.10934609,13.163,13.162,8.16e-05]
[1672936514389,287.10934609,13.163,13.162,8.16e-05]
[1672936518191,250.10934609,13.163,13.162,8.16e-05]
[1672936518401,123.91009143,13.163,13.162,8.16e-05]
[1672936520276,140.91009143,13.163,13.162,8.16e-05]
[1672936520488,189.05547536,13.163,13.162,8.16e-05]
[1672936520695,211.47284685,13.163,13.162,8.16e-05]
[1672936521147,189.05547536,13.163,13.162,8.16e-05]
[1672936522523,211.47284685,13.163,13.162,8.16e-05]
[1672936522832,268.49284685,13.163,13.162,8.16e-05]
[1672936525967,246.07547536,13.163,13.162,8.16e-05]
[1672936526296,189.05547536,13.163,13.162,8.16e-05]
[1672936527149,268.49284685,13.163,13.162,8.16e-05]
[1672936527661,211.47284685,13.163,13.162,8.16e-05]
[1672936527863,110.36864944,13.163,13.162,8.16e-05]
[1672936528279,20.0,13.162,13.156,23.7764255]
[1672936528698,110.36864944,13.163,13.156,23.7764255]
[1672936529239,20.0,13.165,13.156,23.7764255]
[1672936529434,20.0,13.164,13.156,23.7764255]
[1672936529645,20.0,13.166,13.156,23.7764255]
[1672936530070,40.0,13.166,13.156,23.7764255]
[1672936530489,20.0,13.166,13.156,23.7764255]
[1672936531647,62.60706565,13.167,13.156,23.7764255]
[1672936531842,13.08,13.17,13.158,20.0]
[1672936532059,13.08,13.17,13.159,74.04]
[1672936532708,13.08,13.17,13.16,111.1948]
[1672936532914,13.08,13.17,13.161,77.03]
[1672936533959,13.08,13.17,13.161,57.03]
[1672936534496,13.08,13.17,13.162,17.0]
[1672936534895,13.08,13.17,13.163,20.0]
[1672936535105,48.14538393,13.173,13.164,17.0]
[1672936535328,62.60706565,13.176,13.164,17.0]
[1672936535536,20.0,13.175,13.165,57.01]
[1672936535759,20.0,13.175,13.166,17.0]
[1672936536905,42.41737149,13.175,13.166,17.0]
[1672936537326,42.41737149,13.175,13.165,57.01]
[1672936537532,20.0,13.174,13.165,57.01]
[1672936537746,20.0,13.174,13.164,118.2348]
[1672936537961,22.41737149,13.173,13.164,118.2348]
[1672936538486,85.02443714,13.173,13.164,118.2348]
[1672936539009,42.41737149,13.172,13.164,118.2348]
[1672936539426,20.0,13.17,13.164,118.2348]
[1672936539625,33.03,13.17,13.161,57.03]
[1672936539839,33.03,13.17,13.162,17.0]
[1672936540788,118.05443714,13.17,13.161,57.03]
[1672936541010,238.47027495,13.17,13.16,111.1948]
[1672936541214,290.28432554,13.17,13.16,111.1948]
[1672936541633,20.0,13.168,13.16,111.1948]
[1672936542047,22.41737149,13.167,13.16,111.1948]
[1672936544990,20.0,13.166,13.157,173.5868]
[1672936545211,77.01,13.165,13.157,116.5368]
[1672936545411,20.0,13.164,13.157,116.5368]
[1672936545620,164.09848773,13.164,13.157,116.5368]
[1672936545837,20.0,13.162,13.157,116.5368]
[1672936546055,20.0,13.162,13.148,20.0]
[1672936546374,22.41737149,13.161,13.149,57.08]
[1672936546595,22.41737149,13.161,13.149,176.8682]
[1672936548075,20.0,13.162,13.149,176.8682]
[1672936548292,22.41737149,13.161,13.149,176.8682]
[1672936557101,22.34248569,13.161,13.149,176.8682]
[1672936562042,57.02,13.164,13.149,176.8682]
[1672936562444,79.43737149,13.164,13.15,20.0]
[1672936562653,20.0,13.162,13.151,57.07]
[1672936562863,20.0,13.162,13.15,57.08]
[1672936563514,20.0,13.16,13.15,57.08]
[1672936563725,20.0,13.158,13.149,119.7882]
[1672936564126,42.41737149,13.158,13.149,119.7882]
[1672936564459,22.41737149,13.158,13.149,119.7882]
[1672936565091,106.17533403,13.162,13.15,77.08]
[1672936565294,22.41737149,13.161,13.15,77.08]
[1672936565506,42.41737149,13.161,13.15,77.08]
[1672936565912,22.41737149,13.161,13.15,77.08]
[1672936567184,47.01249964,13.162,13.15,77.08]
[1672936567408,136.17283439,13.165,13.15,77.08]
[1672936567600,79.16283439,13.165,13.157,17.0]
[1672936567929,79.16283439,13.165,13.151,20.0]
[1672936568239,136.17283439,13.165,13.152,57.07]
[1672936568551,20.0,13.164,13.152,57.07]
[1672936568779,77.02,13.164,13.152,57.07]
[1672936568955,99.43737149,13.164,13.153,110.8426]
[1672936570654,79.43737149,13.164,13.153,110.8426]
[1672936571090,185.61270552,13.164,13.153,110.8426]
[1672936571302,20.0,13.163,13.153,110.8426]
[1672936571513,57.03,13.162,13.153,110.8426]
[1672936571705,20.0,13.161,13.153,110.8426]
[1672936571918,57.03,13.16,13.153,110.8426]
[1672936572356,79.44737149,13.16,13.153,110.8426]
[1672936573199,22.41737149,13.16,13.153,110.8426]
[1672936574135,57.03,13.161,13.153,110.8426]
[1672936574340,47.01249964,13.162,13.153,110.8426]
[1672936574863,47.01249964,13.162,13.154,20.0]
[1672936575707,47.01249964,13.162,13.153,110.8426]
[1672936576668,47.01249964,13.162,13.154,20.0]
[1672936576852,22.41737149,13.164,13.154,77.06]
[1672936577059,47.01249964,13.166,13.154,77.06]
[1672936577277,56.99,13.169,13.157,74.05]
[1672936577488,56.99,13.169,13.158,20.0]
[1672936577926,79.40737149,13.169,13.158,20.0]
[1672936579910,79.40737149,13.169,13.159,17.0]
[1672936581382,22.41737149,13.169,13.159,74.04]
[1672936581590,22.41737149,13.169,13.159,17.0]
[1672936582013,70.21,13.17,13.159,17.0]
[1672936582227,92.62737149,13.17,13.159,17.0]
[1672936582440,92.62737149,13.17,13.16,109.8537]
[1672936584015,92.62737149,13.17,13.161,17.0]
[1672936584230,35.63737149,13.17,13.161,17.0]
[1672936584663,13.22,13.17,13.161,17.0]
[1672936584848,13.22,13.17,13.162,20.0]
[1672936585060,13.22,13.17,13.163,17.0]
[1672936585707,13.22,13.17,13.164,20.0]
[1672936585908,56.97,13.174,13.165,17.0]
[1672936587285,56.97,13.174,13.164,17.0]
[1672936589470,79.38737149,13.174,13.164,17.0]
[1672936590134,56.97,13.174,13.164,17.0]
[1672936590314,22.41737149,13.176,13.165,97.01]
[1672936591475,22.41737149,13.176,13.166,17.0]
[1672936591908,22.41737149,13.176,13.168,20.0]
[1672936592109,22.41737149,13.176,13.167,176.6644]
[1672936592338,22.41737149,13.176,13.168,17.0]
[1672936592858,56.97,13.175,13.162,57.02]
[1672936593073,20.0,13.173,13.163,17.0]
[1672936593470,22.41737149,13.172,13.163,17.0]
[1672936593892,40.0,13.174,13.163,17.0]
[1672936594537,20.0,13.174,13.163,17.0]
[1672936594949,40.0,13.176,13.164,57.02]
[1672936595168,56.97,13.175,13.165,17.0]
[1672936595478,40.0,13.174,13.165,17.0]
[1672936595691,20.0,13.174,13.165,17.0]
[1672936595891,20.0,13.174,13.165,20.0]
[1672936596128,20.0,13.175,13.166,17.0]
[1672936596846,20.0,13.175,13.165,74.01]
[1672936597058,20.0,13.175,13.165,17.0]
[1672936597271,20.0,13.175,13.165,74.01]
[1672936597477,40.0,13.176,13.165,74.01]
[1672936597678,56.97,13.175,13.165,74.01]
[1672936597894,56.97,13.175,13.165,17.0]
[1672936598215,56.96,13.176,13.165,20.0]
[1672936598427,56.96,13.177,13.167,20.0]
[1672936598743,56.96,13.177,13.168,17.0]
[1672936598949,79.37737149,13.178,13.168,17.0]
[1672936599905,22.41737149,13.178,13.168,17.0]
[1672936601483,22.41737149,13.178,13.169,20.0]
[1672936601671,56.95,13.179,13.171,20.0]
[1672936601882,13.03,13.18,13.172,17.0]
[1672936602306,35.44737149,13.18,13.172,17.0]
[1672936602949,35.44737149,13.18,13.171,17.0]
[1672936603899,35.44737149,13.18,13.17,17.0]
[1672936604217,35.44737149,13.18,13.171,56.99]
[1672936604408,35.44737149,13.18,13.172,17.0]
[1672936604946,35.44737149,13.18,13.171,73.99]
[1672936605999,35.44737149,13.18,13.171,17.0]
[1672936606210,35.44737149,13.18,13.171,20.0]
[1672936606403,35.44737149,13.18,13.172,17.0]
[1672936606622,13.03,13.18,13.172,17.0]
[1672936606829,328.04093097,13.198,13.172,17.0]
[1672936606830,22.41737149,13.182,13.172,17.0]
[1672936607039,56.93,13.185,13.172,17.0]
[1672936607251,20.0,13.183,13.172,17.0]
[1672936607459,76.93,13.183,13.172,17.0]
[1672936607665,22.41737149,13.182,13.172,17.0]
[1672936607876,22.41737149,13.182,13.17,56.99]
[1672936607877,13.07,13.18,13.17,56.99]
[1672936609053,13.07,13.18,13.169,20.0]
[1672936609243,13.07,13.18,13.17,73.99]
[1672936610432,13.07,13.18,13.17,17.0]
[1672936610638,13.07,13.18,13.17,73.99]
[1672936611055,13.07,13.18,13.17,17.0]
[1672936611367,13.07,13.18,13.17,20.0]
[1672936611583,13.07,13.18,13.171,17.0]
[1672936618424,13.07,13.18,13.172,56.98]
[1672936618626,13.07,13.18,13.173,17.0]
[1672936618829,13.07,13.18,13.171,17.0]
[1672936619031,13.07,13.18,13.171,73.99]
[1672936620003,13.07,13.18,13.171,17.0]
[1672936620202,13.07,13.18,13.17,17.0]
[1672936620617,13.07,13.18,13.172,20.0]
[1672936620826,13.07,13.18,13.173,17.0]
[1672936622000,13.07,13.18,13.172,17.0]
[1672936625037,13.07,13.18,13.171,17.0]
[1672936627237,13.07,13.18,13.169,56.99]
[1672936627448,35.48737149,13.18,13.169,56.99]
[1672936627978,55.16737149,13.18,13.169,56.99]
[1672936628397,20.0,13.178,13.168,57.0]
[1672936629541,42.41737149,13.178,13.167,174.5547]
[1672936629895,20.0,13.176,13.167,117.5547]
[1672936630091,56.96,13.177,13.167,117.5547]
[1672936630494,79.37737149,13.177,13.167,117.5547]
[1672936630827,20.0,13.176,13.167,117.5547]
[1672936631566,79.37737149,13.177,13.167,117.5547]
[1672936632186,79.37737149,13.177,13.162,57.02]
[1672936632187,95.33770466,13.176,13.162,57.02]
[1672936632400,95.33770466,13.176,13.161,57.03]
[1672936632401,32.82,13.17,13.161,57.03]
[1672936632609,32.82,13.17,13.16,109.8537]
[1672936632800,158.92107615,13.17,13.16,109.8537]
[1672936633015,20.0,13.169,13.16,109.8537]
[1672936633697,42.41737149,13.169,13.16,109.8537]
[1672936636061,74.98945549,13.169,13.16,109.8537]
[1672936637542,131.97945549,13.169,13.16,109.8537]
[1672936643859,131.97945549,13.169,13.161,17.0]
[1672936644067,109.562084,13.169,13.161,17.0]
[1672936649229,20.0,13.168,13.16,86.8537]
[1672936650042,42.41737149,13.168,13.158,57.04]
[1672936650255,99.41737149,13.168,13.157,169.5255]
[1672936650695,79.41737149,13.168,13.157,169.5255]
[1672936651327,22.41737149,13.168,13.157,169.5255]
[1672936651537,22.41737149,13.168,13.158,17.0]
[1672936652273,74.98945549,13.168,13.157,169.5255]
[1672936652483,126.10107615,13.168,13.157,112.4755]
[1672936652703,57.0,13.167,13.157,112.4755]
[1672936653018,77.0,13.167,13.157,112.4755]
[1672936653415,57.0,13.167,13.158,17.0]
[1672936653621,56.99,13.169,13.158,74.04]
[1672936653836,20.0,13.168,13.158,17.0]
[1672936657113,109.562084,13.169,13.158,17.0]
[1672936658352,52.572084,13.169,13.158,17.0]
[1672936658562,72.572084,13.169,13.158,17.0]
[1672936658902,20.0,13.168,13.158,17.0]
[1672936659087,77.0,13.168,13.154,57.06]
[1672936659303,129.572084,13.168,13.154,171.4235]
[1672936660265,151.98945549,13.168,13.154,171.4235]
[1672936660454,20.0,13.166,13.154,171.4235]
[1672936660671,57.01,13.165,13.154,114.3635]
[1672936660876,20.0,13.164,13.154,114.3635]
[1672936661940,20.0,13.164,13.147,57.09]
[1672936662353,20.0,13.164,13.148,117.7287]
[1672936662568,20.0,13.164,13.149,57.08]
[1672936663855,20.0,13.164,13.154,57.06]
[1672936664164,20.0,13.165,13.154,57.06]
[1672936667220,123.68370466,13.166,13.154,57.06]
[1672936667432,123.68370466,13.166,13.157,17.0]
[1672936667433,72.572084,13.166,13.157,17.0]
[1672936668806,72.572084,13.166,13.154,173.5186]
[1672936670253,52.572084,13.166,13.154,173.5186]
[1672936670586,20.0,13.165,13.154,173.5186]
[1672936672586,20.0,13.165,13.157,17.0]
[1672936675238,20.0,13.165,13.154,173.5186]
[1672936682682,77.02,13.164,13.147,57.09]
[1672936682896,20.0,13.163,13.147,173.9134]
[1672936683106,20.0,13.161,13.147,173.9134]
[1672936685113,72.572084,13.161,13.147,173.9134]
[1672936685417,20.0,13.159,13.147,173.9134]
[1672936689092,72.572084,13.159,13.147,173.9134]
[1672936689298,129.612084,13.159,13.147,173.9134]
[1672936690453,72.572084,13.159,13.147,173.9134]
[1672936693706,94.98945549,13.159,13.147,173.9134]
[1672936701308,20.0,13.159,13.147,173.9134]
[1672936702669,152.01945549,13.16,13.147,173.9134]
[1672936702882,17.0,13.159,13.147,173.9134]
[1672936706136,20.0,13.158,13.147,173.9134]
[1672936709187,100.32724684,13.158,13.147,173.9134]
[1672936710355,152.89933084,13.158,13.147,173.9134]
[1672936710571,74.05,13.157,13.156,0.0064255]
[1672936710778,20.0,13.156,13.14,57.12]
[1672936710973,32.72,13.15,13.14,173.097]
[1672936712025,20.0,13.149,13.14,173.097]
[1672936712999,52.72,13.15,13.14,173.097]
[1672936713204,32.72,13.15,13.14,173.097]
[1672936714246,57.90987535,13.155,13.141,20.0]
[1672936714462,26.26,13.16,13.141,20.0]
[1672936714463,32.78,13.16,13.143,20.0]
[1672936714780,20.0,13.158,13.144,57.1]
[1672936715007,20.0,13.158,13.145,37.0]
[1672936715175,20.0,13.158,13.147,20.0]
[1672936715392,20.0,13.158,13.148,57.09]
[1672936715714,20.0,13.158,13.147,57.09]
[1672936716131,193.8762517,13.159,13.147,57.09]
[1672936716559,171.45888021,13.159,13.147,57.09]
[1672936718034,114.41888021,13.159,13.147,57.09]
[1672936718227,20.0,13.158,13.147,57.09]
[1672936719072,171.45888021,13.159,13.147,57.09]
[1672936719277,57.55280869,13.159,13.148,37.0]
[1672936719498,32.78,13.16,13.149,57.08]
[1672936720755,20.0,13.158,13.149,57.08]
[1672936720964,20.0,13.158,13.147,57.09]
[1672936721912,20.0,13.159,13.149,20.0]
[1672936722118,169.6162517,13.16,13.149,77.08]
[1672936722331,169.6162517,13.16,13.149,57.08]
[1672936723084,147.19888021,13.16,13.149,57.08]
[1672936724981,20.0,13.158,13.149,57.08]
[1672936725503,57.04,13.159,13.149,57.08]
[1672936725724,57.04,13.159,13.148,20.0]
[1672936725927,57.04,13.159,13.15,20.0]
[1672936726331,57.04,13.159,13.149,57.08]
[1672936726765,57.04,13.159,13.148,57.09]
[1672936726976,147.19888021,13.16,13.149,17.0]
[1672936728355,169.6162517,13.16,13.149,17.0]
[1672936728656,169.6162517,13.16,13.148,57.09]
[1672936728886,20.0,13.158,13.148,20.0]
[1672936729067,57.04,13.159,13.148,20.0]
[1672936729282,57.04,13.159,13.149,57.08]
[1672936729487,57.04,13.159,13.148,77.09]
[1672936729916,169.6162517,13.16,13.149,17.0]
[1672936730115,112.75018018,13.16,13.149,17.0]
[1672936730326,6.54,13.16,13.151,20.0]
[1672936731173,6.54,13.16,13.15,57.08]
[1672936731385,6.54,13.16,13.152,20.0]
[1672936731595,6.54,13.16,13.152,77.07]
[1672936732132,6.54,13.16,13.152,57.07]
[1672936732658,32.69,13.16,13.152,57.07]
[1672936732866,32.69,13.16,13.148,57.09]
[1672936733268,32.69,13.16,13.147,57.09]
[1672936733691,20.0,13.159,13.147,57.09]
[1672936733899,77.04,13.159,13.147,57.09]
[1672936734443,20.0,13.157,13.147,57.09]
[1672936734943,99.45737149,13.159,13.147,57.09]
[1672936735791,20.0,13.157,13.147,57.09]
[1672936736339,17.0,13.158,13.147,57.09]
[1672936738201,17.0,13.158,13.147,56.59]
[1672936738411,20.0,13.157,13.147,56.59]
[1672936740847,37.0,13.158,13.147,56.59]
[1672936741778,17.0,13.158,13.147,56.59]
[1672936743489,20.0,13.156,13.139,110.4331]
[1672936743700,20.0,13.149,13.14,117.1728]
[1672936744322,157.0559333,13.15,13.141,57.12]
[1672936745151,20.0,13.149,13.141,57.12]
[1672936745486,363.15547663,13.149,13.141,57.12]
[1672936745696,124.20724313,13.148,13.14,174.2928]
[1672936745919,20.0,13.147,13.14,174.2928]
[1672936746428,144.20724313,13.147,13.14,174.2928]
[1672936746647,144.20724313,13.147,13.14,117.1728]
[1672936748122,238.99954333,13.147,13.14,117.1728]
[1672936749993,218.99954333,13.147,13.14,117.1728]
[1672936754084,94.7923002,13.147,13.14,117.1728]
[1672936754420,113.6715148,13.15,13.141,74.12]
[1672936754618,46.27,13.16,13.141,74.12]
[1672936754619,57.05,13.157,13.141,94.12]
[1672936754818,32.87,13.16,13.141,94.12]
[1672936754819,57.04,13.159,13.142,20.0]
[1672936755034,57.04,13.159,13.143,94.11]
[1672936755467,20.0,13.158,13.144,20.0]
[1672936755670,20.0,13.158,13.145,94.1]
[1672936756290,77.04,13.159,13.147,20.0]
[1672936756291,99.45737149,13.159,13.147,20.0]
[1672936756513,79.45737149,13.159,13.147,77.09]
[1672936756711,79.45737149,13.159,13.149,20.0]
[1672936756922,22.41737149,13.159,13.147,77.09]
[1672936757131,22.41737149,13.159,13.148,17.0]
[1672936757341,22.41737149,13.159,13.149,57.08]
[1672936757561,79.45737149,13.159,13.15,17.0]
[1672936757883,22.41737149,13.159,13.15,17.0]
[1672936758288,22.41737149,13.159,13.149,17.0]
[1672936758499,22.41737149,13.159,13.15,57.08]
[1672936760402,6.63,13.16,13.151,17.0]
[1672936761137,6.63,13.16,13.15,74.08]
[1672936761350,6.63,13.16,13.151,20.0]
[1672936761562,6.63,13.16,13.152,17.0]
[1672936761768,6.63,13.16,13.152,74.07]
[1672936766402,6.63,13.16,13.152,57.07]
[1672936766717,6.63,13.16,13.147,20.0]
[1672936766718,6.63,13.16,13.149,20.0]
[1672936766932,6.63,13.16,13.15,74.08]
[1672936769425,6.63,13.16,13.151,40.0]
[1672936769749,61.02890071,13.166,13.153,20.0]
[1672936770073,61.02890071,13.166,13.154,94.06]
[1672936770919,22.41737149,13.167,13.154,94.06]
[1672936772603,6.56,13.16,13.154,57.06]
[1672936772813,32.8,13.16,13.152,57.07]
[1672936773029,55.16737149,13.16,13.147,57.09]
[1672936773219,17.0,13.159,13.147,57.09]
[1672936773431,20.0,13.158,13.147,57.09]
[1672936774163,42.41737149,13.158,13.147,57.09]
[1672936777843,17.0,13.157,13.147,57.09]
[1672936778790,22.41737149,13.158,13.147,57.09]
[1672936779749,55.16737149,13.16,13.148,17.0]
[1672936779946,55.16737149,13.16,13.149,57.08]
[1672936780786,57.04,13.159,13.149,57.08]
[1672936780992,89.78,13.16,13.149,57.08]
[1672936781219,32.75,13.16,13.15,17.0]
[1672936781832,32.75,13.16,13.148,57.09]
[1672936781833,32.75,13.16,13.149,17.0]
[1672936782056,32.75,13.16,13.15,57.08]
[1672936783320,32.75,13.16,13.149,17.0]
[1672936784780,32.75,13.16,13.148,17.0]
[1672936784989,32.75,13.16,13.149,57.08]
[1672936785204,32.75,13.16,13.15,17.0]
[1672936786772,32.75,13.16,13.149,74.08]
[1672936787530,32.75,13.16,13.149,57.08]
[1672936787765,74.04,13.159,13.148,114.838]
[1672936787971,17.0,13.159,13.148,114.838]
[1672936788359,20.0,13.157,13.148,114.838]
[1672936788573,57.04,13.158,13.148,114.838]
[1672936789534,65.62,13.16,13.149,57.08]
[1672936789731,13.09,13.16,13.15,17.0]
[1672936789943,13.09,13.16,13.151,57.07]
[1672936790147,13.09,13.16,13.152,17.0]
[1672936790469,13.09,13.16,13.153,57.06]
[1672936790792,13.09,13.16,13.154,17.0]
[1672936793520,13.09,13.16,13.149,57.08]
[1672936793743,13.09,13.16,13.151,20.0]
[1672936793943,13.09,13.16,13.152,74.07]
[1672936794155,13.09,13.16,13.152,17.0]
[1672936794369,13.09,13.16,13.151,74.07]
[1672936794772,13.09,13.16,13.151,57.07]
[1672936794992,13.09,13.16,13.149,57.08]
[1672936796358,13.09,13.16,13.15,17.0]
[1672936796560,13.09,13.16,13.151,57.07]
[1672936799289,87.96737149,13.16,13.147,57.09]
[1672936799499,20.0,13.159,13.147,57.09]
[1672936799943,87.96737149,13.16,13.148,20.0]
[1672936800132,87.96737149,13.16,13.149,57.08]
[1672936800548,87.96737149,13.16,13.15,17.0]
[1672936801613,87.96737149,13.16,13.149,17.0]
[1672936801821,87.96737149,13.16,13.15,57.08]
[1672936802575,87.96737149,13.16,13.147,172.6284]
[1672936802764,20.0,13.159,13.147,172.6284]
[1672936802975,77.04,13.159,13.147,172.6284]
[1672936803303,22.41737149,13.158,13.147,172.6284]
[1672936804034,22.41737149,13.158,13.148,17.0]
[1672936805520,22.41737149,13.158,13.147,172.6284]
[1672936807085,22.41737149,13.158,13.148,17.0]
[1672936807408,22.41737149,13.158,13.149,20.0]
[1672936807635,234.94596738,13.16,13.149,77.08]
[1672936807824,257.36333887,13.16,13.149,57.08]
[1672936808667,257.36333887,13.16,13.148,57.09]
[1672936808878,57.04,13.159,13.148,57.09]
[1672936809081,20.0,13.158,13.148,57.09]
[1672936810880,22.41737149,13.159,13.148,57.09]
[1672936811726,42.41737149,13.159,13.148,57.09]
[1672936813504,22.41737149,13.159,13.148,57.09]
[1672936817076,234.94596738,13.16,13.149,37.0]
[1672936817289,234.94596738,13.16,13.151,20.0]
[1672936817702,234.94596738,13.16,13.15,57.08]
[1672936819615,234.94596738,13.16,13.151,17.0]
[1672936819822,234.94596738,13.16,13.152,57.07]
[1672936820030,234.94596738,13.16,13.151,17.0]
[1672936820557,234.94596738,13.16,13.148,57.09]
[1672936820874,20.0,13.159,13.148,57.09]
[1672936821085,37.0,13.159,13.148,57.09]